Workbook

Sheet 1.财政拨款收支总表
F1: 预算公开01表
A2: 财政拨款收支总表
F3: 单位：万元
A4: 收入 | C4: 支出
A5: 项目 | B5: 预算数 | C5: 项目 | D5: 合计 | E5: 一般公共预算 | F5: 政府性基金预算
A6: 一、本年收入 | B6: 409.39 | C6: 一、本年支出 | D6: =E6+F6 -> 409.39 | E6: =SUM(E7:E32) -> 409.39 | F6: =SUM(F7:F32) -> 0.00
A7: 1.一般公共预算拨款 | B7: 409.39 | C7: 一、一般公共服务支出 | D7: =E7+F7 -> 0.00 | E7: 0.00 | F7: 0.00
A8: 2.政府性基金预算拨款 | B8: 0.00 | C8: 二、外交支出 | D8: 0.00 | E8: 0.00 | F8: 0.00
C9: 三、国防支出 | D9: 0.00 | E9: 0.00 | F9: 0.00
A10: 二、上年结转 | B10: 0.00 | C10: 四、公共安全支出 | D10: 0.00 | E10: 0.00 | F10: 0.00
A11: 1.一般公共预算拨款结转 | B11: 0.00 | C11: 五、教育支出 | D11: 0.00 | E11: 0.00 | F11: 0.00
A12: 2.政府性基金预算拨款结转 | B12: 0.00 | C12: 六、科学技术支出 | D12: 0.00 | E12: 0.00 | F12: 0.00
C13: 七、文化体育与传媒支出 | D13: 0.00 | E13: 0.00 | F13: 0.00
C14: 八、社会保障和就业支出 | D14: 20.08 | E14: 20.08 | F14: 0.00
C15: 九、医疗卫生与计划生育支出 | D15: 5.74 | E15: 5.74 | F15: 0.00
C16: 十、节能环保支出 | D16: 0.00 | E16: 0.00 | F16: 0.00
C17: 十一、城乡社区支出 | D17: 0.00 | E17: 0.00 | F17: 0.00
C18: 十二、农林水支出 | D18: 0.00 | E18: 0.00 | F18: 0.00
C19: 十三、交通运输支出 | D19: 374.97 | E19: 374.97 | F19: 0.00
C20: 十四、资源勘探信息等支出 | D20: 0.00 | E20: 0.00 | F20: 0.00
C21: 十五、商业服务业等支出 | D21: 0.00 | E21: 0.00 | F21: 0.00
C22: 十六、金融支出 | D22: 0.00 | E22: 0.00 | F22: 0.00
C23: 十七、援助其他地区支出 | D23: 0.00 | E23: 0.00 | F23: 0.00
C24: 十八、国土海洋气象等支出 | D24: 0.00 | E24: 0.00 | F24: 0.00
C25: 十九、住房保障支出 | D25: 8.60 | E25: 8.60 | F25: 0.00
C26: 二十、粮油物资储备支出 | D26: 0.00 | E26: 0.00 | F26: 0.00
C27: 二十一、国有资本经营预算支出 | D27: 0.00 | E27: 0.00 | F27: 0.00
C28: 二十二、预备费 | D28: 0.00 | E28: 0.00 | F28: 0.00
C29: 二十三、其他支出 | D29: 0.00 | E29: 0.00 | F29: 0.00
C30: 二十四、债务还本支出 | D30: 0.00 | E30: 0.00 | F30: 0.00
C31: 二十五、债务付息支出 | D31: 0.00 | E31: 0.00 | F31: 0.00
C32: 二十六、债务发行费用支出 | D32: 0.00 | E32: 0.00 | F32: 0.00
A33: 收入合计 | B33: 409.39 | C33: 支出合计 | D33: 409.39 | E33: =E6 -> 409.39 | F33: =F6 -> 0.00

Sheet 2.一般公共预算支出表
H1: 预算公开02表
A2: 一般公共预算支出表
H3: 单位：万元
A4: 科目编码 | D4: 科目名称 | E4: 合计 | F4: 基本支出 | G4: 项目支出 | H4: 结转下年
A5: 类 | B5: 款 | C5: 项
A6: ** | B6: ** | C6: ** | D6: ** | E6: 1 | F6: 2 | G6: 3 | H6: 4
D7: 合计 | E7: =F7+G7 -> 409.39 | F7: =F8+F12+F15+F21 -> 153.43 | G7: =G8+G12+G15+G21 -> 255.96 | H7: 0.00
A8: 208 | D8: 社会保障和就业支出 | E8: =F8+G8 -> 20.08 | F8: =F9 -> 20.08 | G8: 0.00 | H8: 0.00
B9: 05 | D9: 行政事业单位离退休 | E9: 20.08 | F9: =F10+F11 -> 20.08 | G9: 0.00 | H9: 0.00
C10: 05 | D10: 机关事业单位基本养老保险缴费支出 | E10: 14.34 | F10: 14.34 | G10: 0.00 | H10: 0.00
C11: 06 | D11: 机关事业单位职业年金缴费支出 | E11: 5.74 | F11: 5.74 | G11: 0.00 | H11: 0.00
A12: 210 | D12: 医疗卫生与计划生育支出 | E12: 5.74 | F12: 5.74 | G12: 0.00 | H12: 0.00
B13: 11 | D13: 行政事业单位医疗 | E13: 5.74 | F13: 5.74 | G13: 0.00 | H13: 0.00
C14: 02 | D14: 事业单位医疗 | E14: 5.74 | F14: 5.74 | G14: 0.00 | H14: 0.00
A15: 214 | D15: 交通运输支出 | E15: 374.97 | F15: =F16 -> 119.01 | G15: =G16 -> 255.96 | H15: 0.00
B16: 01 | D16: 公路水路运输 | E16: 374.97 | F16: =F18 -> 119.01 | G16: =G18 -> 255.96 | H16: 0.00
C17: 23 | D17: 航道维护 | E17: 0.00 | H17: 0.00
C18: 27 | D18: 船舶检验 | E18: 374.97 | F18: 119.01 | G18: 255.96 | H18: 0.00
C19: 36 | D19: 水路运输管理支出 | E19: 0.00 | H19: 0.00
C20: 99 | D20: 其他公路水路运输支出 | E20: 0.00 | F20: 0.00 | H20: 0.00
A21: 221 | D21: 住房保障支出 | E21: 8.60 | F21: =F22 -> 8.60 | G21: 0.00 | H21: 0.00
B22: 02 | D22: 住房改革支出 | E22: 8.60 | F22: =F23 -> 8.60 | G22: 0.00 | H22: 0.00
C23: 01 | D23: 住房公积金 | E23: 8.60 | F23: 8.60 | G23: 0.00 | H23: 0.00

Sheet 3.一般公共预算基本支出表
E1: 预算公开03表
A2: 一般公共预算基本支出表
E3: 单位：万元
A4: 经济分类科目 | C4: 2017年基本支出
A5: 科目编码 | B5: 科目名称 | C5: 合计 | D5: 人员经费 | E5: 公用经费
B6: 合计 | C6: =D6+E6 -> 153.43 | D6: =D7+D30 -> 111.22 | E6: =E13 -> 42.21
A7: 301 | B7: 工资福利支出 | C7: =D7+E7 -> 99.03 | D7: =SUM(D8:D12) -> 99.03 | E7: 0.00
A8: 30101 | B8: 基本工资 | C8: 71.70 | D8: 71.70 | E8: 0.00
A9: 30102 | B9: 津贴补贴 | C9: 0.00 | E9: 0.00
A10: 30104 | B10: 其他社会保障缴费 | C10: 7.25 | D10: 7.25 | E10: 0.00
A11: 30108 | B11: 机关事业单位基本养老保险缴费 | C11: 14.34 | D11: 14.34 | E11: 0.00
A12: 30109 | B12: 职业年金缴费 | C12: 5.74 | D12: 5.74 | E12: 0.00
A13: 302 | B13: 商品和服务支出 | C13: 42.21 | D13: 0.00 | E13: =SUM(E14:E29) -> 42.21
A14: 30201 | B14: 办公费 | C14: 4.28 | D14: 0.00 | E14: 4.28
A15: 30202 | B15: 印刷费 | C15: 1.09 | D15: 0.00 | E15: 1.09
A16: 30205 | B16: 水费 | C16: 0.65 | D16: 0.00 | E16: 0.65
A17: 30206 | B17: 电费 | C17: 2.36 | D17: 0.00 | E17: 2.36
A18: 30207 | B18: 邮电费 | C18: 2.33 | D18: 0.00 | E18: 2.33
A19: 30209 | B19: 物业管理费 | C19: 1.27 | D19: 0.00 | E19: 1.27
A20: 30211 | B20: 差旅费 | C20: 10.51 | D20: 0.00 | E20: 10.51
A21: 30213 | B21: 维修(护)费 | C21: 1.02 | D21: 0.00 | E21: 1.02
A22: 30215 | B22: 会议费 | C22: 2.60 | D22: 0.00 | E22: 2.60
A23: 30216 | B23: 培训费 | C23: 0.74 | D23: 0.00 | E23: 0.74
A24: 30217 | B24: 公务接待费 | C24: 0.34 | D24: 0.00 | E24: 0.34
A25: 30226 | B25: 劳务费 | C25: 0.71 | D25: 0.00 | E25: 0.71
A26: 30228 | B26: 工会经费 | C26: 1.43 | D26: 0.00 | E26: 1.43
A27: 30229 | B27: 福利费 | C27: 2.29 | D27: 0.00 | E27: 2.29
A28: 30231 | B28: 公务用车运行维护费 | C28: 9.76 | D28: 0.00 | E28: 9.76
A29: 30299 | B29: 其他商品和服务支出 | C29: 0.83 | D29: 0.00 | E29: 0.83
A30: 303 | B30: 对个人和家庭的补助 | C30: 12.19 | D30: =SUM(D31:D35) -> 12.19 | E30: 0.00
A31: 30301 | B31: 离休费 | C31: 0.00 | E31: 0.00
A32: 30302 | B32: 退休费 | C32: 0.00 | E32: 0.00
A33: 30307 | B33: 医疗费 | C33: 0.00 | E33: 0.00
A34: 30311 | B34: 住房公积金 | C34: 8.60 | D34: 8.60 | E34: 0.00
A35: 30399 | B35: 其他对个人和家庭的补助支出 | C35: 3.59 | D35: 3.59 | E35: 0.00

Sheet 4.部门预算资金安排的“三公”经费预算情况表
C1: 预算公开04表
A2: 部门预算资金安排的“三公”经费预算情况表
C3: 单位：万元
A4: 项目 | B4: 2017年预算数（全口径） | C4: 其中：一般公共预算安排预算数
A5: 合计 | B5: =B6+B7+B8 -> 15.08 | C5: =C6+C7+C8 -> 15.08
A6: 1.因公出国（境）费用
A7: 2.公务接待费 | B7: 5.32 | C7: 5.32
A8: 3.公务用车购置及运行费 | B8: =B9 -> 9.76 | C8: =C9 -> 9.76
A9: 其中：（1）公务用车运行维护费 | B9: 9.76 | C9: 9.76
A10: （2）公务用车购置费 | B10: 0.00 | C10: 0.00

Sheet 5.政府性基金预算拨款支出预算表
X1: 预算公开05表
A2: 政府性基金预算拨款支出预算表
X3: 单位：万元
A4: 科目编码 | D4: 单位代码 | E4: 单位名称 (功能分类科目名称) | F4: 总计 | G4: 基本支出 | K4: 项目支出 | V4: 结转下年支出
A5: 类 | B5: 款 | C5: 项 | G5: 合计 | H5: 工资福利支出 | I5: 商品和服务支出 | J5: 对个人和家庭的补助 | K5: 合计 | L5: 工资福利支出 | M5: 商品和服务支出 | N5: 对个人和家庭的补助 | O5: 对企事业单位的补贴 | P5: 转移性支付 | Q5: 债务利息支出 | R5: 债务还本支出 | S5: 基本建设支出 | T5: 其他资本性支出 | U5: 其他支出 | V5: 合计 | W5: 基本支出结转 | X5: 项目支出结转
A6: ** | B6: ** | C6: ** | D6: ** | E6: ** | F6: 1 | G6: 2 | H6: 3 | I6: 4 | J6: 5 | K6: 6 | L6: 7 | M6: 8 | N6: 9 | O6: 10 | P6: 11 | Q6: 12 | R6: 13 | S6: 14 | T6: 15 | U6: 16 | V6: 17 | W6: 18 | X6: 19

Sheet 6.部门收支总表
D1: 预算公开06表
A2: 部门收支总表
D3: 单位：万元
A4: 收 入 | C4: 支 出
A5: 项 目 | B5: 预算数 | C5: 项 目（按支出功能科目分类） | D5: 预算数
A6: 一、一般公共预算拨款 | B6: =B10 -> 409.39 | C6: 一、一般公共服务支出 | D6: 0.00
A7: 1.经费拨款 | C7: 二、外交支出 | D7: 0.00
A8: (1)自治区本级 | C8: 三、国防支出 | D8: 0.00
A9: (2)中央补助 | C9: 四、公共安全支出 | D9: 0.00
A10: 2.纳入一般公共预算管理的非税收入安排的资金 | B10: =B12 -> 409.39 | C10: 五、教育支出 | D10: 0.00
A11: （1）专项收入安排的资金 | B11: 0.00 | C11: 六、科学技术支出 | D11: 0.00
A12: （2）行政事业性收费收入安排的资金 | B12: 409.39 | C12: 七、文化体育与传媒支出 | D12: 0.00
A13: （3）罚没收入安排的资金 | C13: 八、社会保障和就业支出 | D13: 20.08
A14: （4）国有资本经营收入安排的资金 | B14: 0.00 | C14: 九、医疗卫生与计划生育支出 | D14: 5.74
A15: （5）国有资源（资产）有偿使用收入安排的资金 | B15: 0.00 | C15: 十、节能环保支出 | D15: 0.00
A16: （6）捐赠收入安排的资金 | B16: 0.00 | C16: 十一、城乡社区支出 | D16: 0.00
A17: （7）政府住房基金收入安排的资金 | B17: 0.00 | C17: 十二、农林水支出 | D17: 0.00
A18: （8）其他收入安排的资金 | B18: 0.00 | C18: 十三、交通运输支出 | D18: 421.59
A19: 二、政府性基金预算拨款 | B19: 0.00 | C19: 十四、资源勘探信息等支出 | D19: 0.00
A20: 1.自治区本级 | B20: 0.00 | C20: 十五、商业服务业等支出 | D20: 0.00
A21: 2.中央补助 | B21: 0.00 | C21: 十六、金融支出 | D21: 0.00
A22: 三、国有资本经营预算拨款 | B22: 0.00 | C22: 十七、援助其他地区支出 | D22: 0.00
A23: 四、纳入财政专户管理的收入安排的资金 | B23: 0.00 | C23: 十八、国土海洋气象等支出 | D23: 0.00
A24: 1.教育收费收入安排的资金 | B24: 0.00 | C24: 十九、住房保障支出 | D24: 8.60
A25: 2.其他收入安排的资金 | B25: 0.00 | C25: 二十、粮油物资储备支出 | D25: 0.00
A26: 五、未纳入财政专户管理的收入安排的资金 | B26: =B29 -> 0.80 | C26: 二十一、国有资本经营预算支出 | D26: 0.00
A27: 1.事业收入安排的资金 | B27: 0.00 | C27: 二十二、预备费 | D27: 0.00
A28: 2.经营收入安排的资金 | B28: 0.00 | C28: 二十三、其他支出 | D28: 0.00
A29: 3.其他收入安排的资金 | B29: 0.80 | C29: 二十四、债务还本支出 | D29: 0.00
C30: 二十五、债务付息支出 | D30: 0.00
C31: 二十六、债务发行费用支出 | D31: 0.00
A32: 本 年 收 入 合 计 | B32: =B6+B26 -> 410.19 | C32: 本 年 支 出 合 计 | D32: =D14++D13+D18+D24 -> 456.01
A33: 六、上年结余收入 | B33: =B42 -> 45.82 | C33: 二十七、结转下年支出 | D33: 0.00
A34: 1.一般公共预算拨款结转 | B34: 0.00 | C34: 1.一般公共服务支出 | D34: 0.00
A35: (1)自治区本级 | B35: 0.00 | C35: 2.外交支出 | D35: 0.00
A36: (2)中央补助 | B36: 0.00 | C36: 3.国防支出 | D36: 0.00
A37: 2.政府性基金预算拨款结转 | B37: 0.00 | C37: 4.公共安全支出 | D37: 0.00
A38: (1)自治区本级 | B38: 0.00 | C38: 5.教育支出 | D38: 0.00
A39: (2)中央补助 | B39: 0.00 | C39: 6.科学技术支出 | D39: 0.00
A40: 3.国有资本经营预算拨款结转 | B40: 0.00 | C40: 7.文化体育与传媒支出 | D40: 0.00
A41: 4.其他结转 | C41: 8.社会保障和就业支出 | D41: 0.00
A42: 5.历年净结余可安排的资金 | B42: =B47 -> 45.82 | C42: 9.医疗卫生与计划生育支出 | D42: 0.00
A43: 其中：政府性基金预算拨款净结余 | B43: 0.00 | C43: 10.节能环保支出 | D43: 0.00
A44: (1)自治区本级 | B44: 0.00 | C44: 11.城乡社区支出 | D44: 0.00
A45: (2)中央补助 | B45: 0.00 | C45: 12.农林水支出 | D45: 0.00
A46: 国有资本经营预算拨款净结余 | B46: 0.00 | C46: 13.交通运输支出 | D46: 0.00
A47: 其他净结余 | B47: 45.82 | C47: 14.资源勘探信息等支出 | D47: 0.00
C48: 15.商业服务业等支出 | D48: 0.00
C49: 16.金融支出 | D49: 0.00
C50: 17.援助其他地区支出 | D50: 0.00
C51: 18.国土海洋气象等支出 | D51: 0.00
C52: 19.住房保障支出 | D52: 0.00
C53: 20.粮油物资储备支出 | D53: 0.00
C54: 21.国有资本经营预算支出 | D54: 0.00
C55: 22.预备费 | D55: 0.00
C56: 23.其他支出 | D56: 0.00
C57: 24.债务还本支出 | D57: 0.00
C58: 25.债务付息支出 | D58: 0.00
C59: 26.债务发行费用支出 | D59: 0.00
A60: 收 入 总 计 | B60: =B32+B33 -> 456.01 | C60: 支 出 总 计 | D60: =D32 -> 456.01

Sheet 7.部门收入总表
AT1: 预算公开07表
A2: 部门收入总表
AT3: 单位：万元
A4: 科目编码 | E4: 单位代码 | F4: 单位名称 (收入分类科目名称) | G4: 总计 | H4: 一般公共预算拨款 | U4: 政府性基金预算拨款 | X4: 国有资本经营预算拨款 | Y4: 纳入财政专户管理的收入安排的资金 | AB4: 未纳入财政专户管理的收入安排的资金 | AF4: 上年结余收入
A5: 类 | B5: 款 | C5: 项 | D5: 目 | H5: 合计 | I5: 经费拨款 | L5: 纳入一般公共预算管理的非税收入安排的资金 | U5: 合计 | V5: 自治区本级 | W5: 中央补助 | Y5: 合计 | Z5: 教育收费收入安排的资金 | AA5: 其他收入安排的资金 | AB5: 合计 | AC5: 事业收入安排的资金 | AD5: 经营收入安排的资金 | AE5: 其他收入安排的资金 | AF5: 合计 | AG5: 一般公共预算拨款结转 | AJ5: 政府性基金预算拨款结转 | AM5: 国有资本经营预算拨款结转 | AN5: 其他结转 | AO5: 历年净结余可安排的资金
AO6: 小计 | AP6: 政府性基金预算拨款 净结余 | AS6: 国有资本经营预算拨款净结余 | AT6: 其他净结余
I7: 小计 | J7: 自治区本级 | K7: 中央补助 | L7: 小计 | M7: 专项收入安排的资金 | N7: 行政事业性收费收入安排的资金 | O7: 罚没收入安排的资金 | P7: 国有资本经营收入安排的资金 | Q7: 国有资源（资产）有偿使用收入安排的资金 | R7: 捐赠收入安排的资金 | S7: 政府住房基金收入安排的资金 | T7: 其他收入安排的资金 | AG7: 小计 | AH7: 自治区本级 | AI7: 中央补助 | AJ7: 小计 | AK7: 自治区本级 | AL7: 中央补助 | AP7: 小计 | AQ7: 自治区本级 | AR7: 中央补助
A8: ** | B8: ** | C8: ** | D8: ** | E8: ** | F8: ** | G8: 1 | H8: 2 | I8: 3 | J8: 4 | K8: 5 | L8: 6 | M8: 7 | N8: 8 | O8: 9 | P8: 10 | Q8: 11 | R8: 12 | S8: 13 | T8: 14 | U8: 15 | V8: 16 | W8: 17 | X8: 18 | Y8: 19 | Z8: 20 | AA8: 21 | AB8: 22 | AC8: 23 | AD8: 24 | AE8: 25 | AF8: 26 | AG8: 27 | AH8: 28 | AI8: 29 | AJ8: 30 | AK8: 31 | AL8: 32 | AM8: 33 | AN8: 34 | AO8: 35 | AP8: 36 | AQ8: 37 | AR8: 38 | AS8: 39 | AT8: 40
F9: 合计 | G9: 456.01 | H9: 409.39 | I9: 0.00 | J9: 0.00 | K9: 0.00 | L9: 409.39 | M9: 0.00 | N9: 409.39 | P9: 0.00 | Q9: 0.00 | R9: 0.00 | S9: 0.00 | T9: 0.00 | U9: 0.00 | V9: 0.00 | W9: 0.00 | X9: 0.00 | Y9: 0.00 | Z9: 0.00 | AA9: 0.00 | AB9: 0.80 | AC9: 0.00 | AD9: 0.00 | AE9: 0.80 | AF9: 45.82 | AG9: 0.00 | AH9: 0.00 | AI9: 0.00 | AJ9: 0.00 | AK9: 0.00 | AL9: 0.00 | AM9: 0.00 | AO9: 45.82 | AP9: 0.00 | AQ9: 0.00 | AR9: 0.00 | AS9: 0.00 | AT9: 45.82
A10: 103 | F10: 非税收入 | G10: 456.01 | H10: 409.39 | I10: 0.00 | J10: 0.00 | K10: 0.00 | L10: 409.39 | M10: 0.00 | N10: 409.39 | P10: 0.00 | Q10: 0.00 | R10: 0.00 | S10: 0.00 | T10: 0.00 | U10: 0.00 | V10: 0.00 | W10: 0.00 | X10: 0.00 | Y10: 0.00 | Z10: 0.00 | AA10: 0.00 | AB10: 0.80 | AC10: 0.00 | AD10: 0.00 | AE10: 0.80 | AF10: 45.82 | AG10: 0.00 | AH10: 0.00 | AI10: 0.00 | AJ10: 0.00 | AK10: 0.00 | AL10: 0.00 | AM10: 0.00 | AO10: 45.82 | AP10: 0.00 | AQ10: 0.00 | AR10: 0.00 | AS10: 0.00 | AT10: 45.82
B11: 04 | F11: 行政事业性收费收入 | G11: 456.01 | H11: 409.39 | I11: 0.00 | J11: 0.00 | K11: 0.00 | L11: 409.39 | M11: 0.00 | N11: 409.39 | O11: 0.00 | P11: 0.00 | Q11: 0.00 | R11: 0.00 | S11: 0.00 | T11: 0.00 | U11: 0.00 | V11: 0.00 | W11: 0.00 | X11: 0.00 | Y11: 0.00 | Z11: 0.00 | AA11: 0.00 | AB11: 0.80 | AC11: 0.00 | AD11: 0.00 | AE11: 0.80 | AF11: 45.82 | AG11: 0.00 | AH11: 0.00 | AI11: 0.00 | AJ11: 0.00 | AK11: 0.00 | AL11: 0.00 | AM11: 0.00 | AN11: 0.00 | AO11: 45.82 | AP11: 0.00 | AQ11: 0.00 | AR11: 0.00 | AS11: 0.00 | AT11: 45.82
C12: 42 | F12: 船舶及船用产品设施检验费 | G12: 456.01 | H12: 409.39 | I12: 0.00 | J12: 0.00 | K12: 0.00 | L12: 409.39 | M12: 0.00 | N12: 409.39 | O12: 0.00 | P12: 0.00 | Q12: 0.00 | R12: 0.00 | S12: 0.00 | T12: 0.00 | U12: 0.00 | V12: 0.00 | W12: 0.00 | X12: 0.00 | Y12: 0.00 | Z12: 0.00 | AA12: 0.00 | AB12: 0.80 | AC12: 0.00 | AD12: 0.00 | AE12: 0.80 | AF12: 45.82 | AG12: 0.00 | AH12: 0.00 | AI12: 0.00 | AJ12: 0.00 | AK12: 0.00 | AL12: 0.00 | AM12: 0.00 | AN12: 0.00 | AO12: 45.82 | AP12: 0.00 | AQ12: 0.00 | AR12: 0.00 | AS12: 0.00 | AT12: 45.82
E13: 305006 | F13: 广西壮族自治区北部湾港口管理局 | G13: 456.01 | H13: 409.39 | I13: 0.00 | J13: 0.00 | K13: 0.00 | L13: 409.39 | M13: 0.00 | N13: 409.39 | P13: 0.00 | Q13: 0.00 | R13: 0.00 | S13: 0.00 | T13: 0.00 | U13: 0.00 | V13: 0.00 | W13: 0.00 | X13: 0.00 | Y13: 0.00 | Z13: 0.00 | AA13: 0.00 | AB13: 0.80 | AC13: 0.00 | AD13: 0.00 | AE13: 0.80 | AF13: 45.82 | AG13: 0.00 | AH13: 0.00 | AI13: 0.00 | AJ13: 0.00 | AK13: 0.00 | AL13: 0.00 | AM13: 0.00 | AO13: 45.82 | AP13: 0.00 | AQ13: 0.00 | AR13: 0.00 | AS13: 0.00 | AT13: 45.82
E14: 305006011 | F14: 北海船舶检验局 | G14: 456.01 | H14: 409.39 | I14: 0.00 | J14: 0.00 | K14: 0.00 | L14: 409.39 | M14: 0.00 | N14: 409.39 | O14: 0.00 | P14: 0.00 | Q14: 0.00 | R14: 0.00 | S14: 0.00 | T14: 0.00 | U14: 0.00 | V14: 0.00 | W14: 0.00 | X14: 0.00 | Y14: 0.00 | Z14: 0.00 | AA14: 0.00 | AB14: 0.80 | AC14: 0.00 | AD14: 0.00 | AE14: 0.80 | AF14: 45.82 | AG14: 0.00 | AH14: 0.00 | AI14: 0.00 | AJ14: 0.00 | AK14: 0.00 | AL14: 0.00 | AM14: 0.00 | AN14: 0.00 | AO14: 45.82 | AP14: 0.00 | AQ14: 0.00 | AR14: 0.00 | AS14: 0.00 | AT14: 45.82
A15: 103 | B15: 04 | C15: 42 | D15: 18 | F15: 船舶及船用产品设施检验费 | G15: 456.01 | H15: 409.39 | I15: 0.00 | J15: 0.00 | K15: 0.00 | L15: 409.39 | M15: 0.00 | N15: 409.39 | O15: 0.00 | P15: 0.00 | Q15: 0.00 | R15: 0.00 | S15: 0.00 | T15: 0.00 | U15: 0.00 | V15: 0.00 | W15: 0.00 | X15: 0.00 | Y15: 0.00 | Z15: 0.00 | AA15: 0.00 | AB15: 0.80 | AC15: 0.00 | AD15: 0.00 | AE15: 0.80 | AF15: 45.82 | AG15: 0.00 | AH15: 0.00 | AI15: 0.00 | AJ15: 0.00 | AK15: 0.00 | AL15: 0.00 | AM15: 0.00 | AN15: 0.00 | AO15: 45.82 | AP15: 0.00 | AQ15: 0.00 | AR15: 0.00 | AS15: 0.00 | AT15: 45.82

Sheet 8.部门支出总表
X1: 预算公开08表
A2: 部门支出总表
X3: 单位：万元
A4: 科目编码 | D4: 单位代码 | E4: 单位名称 (功能分类科目名称) | F4: 总计 | G4: 基本支出 | K4: 项目支出 | V4: 结转下年支出
A5: 类 | B5: 款 | C5: 项 | G5: 合计 | H5: 工资福利支出 | I5: 商品和服务支出 | J5: 对个人和家庭的补助 | K5: 合计 | L5: 工资福利支出 | M5: 商品和服务支出 | N5: 对个人和家庭的补助 | O5: 对企事业单位的补贴 | P5: 转移性支付 | Q5: 债务利息支出 | R5: 债务还本支出 | S5: 基本建设支出 | T5: 其他资本性支出 | U5: 其他支出 | V5: 合计 | W5: 基本支出结转 | X5: 项目支出结转
A6: ** | B6: ** | C6: ** | D6: ** | E6: ** | F6: 1 | G6: 2 | H6: 3 | I6: 4 | J6: 5 | K6: 6 | L6: 7 | M6: 8 | N6: 9 | O6: 10 | P6: 11 | Q6: 12 | R6: 13 | S6: 14 | T6: 15 | U6: 16 | V6: 17 | W6: 18 | X6: 19
E7: 合计 | F7: 456.01 | G7: 154.23 | H7: 99.03 | I7: 42.21 | J7: 12.99 | K7: 301.78 | L7: 164.28 | M7: 104.76 | N7: 20.34 | O7: 0.00 | P7: 0.00 | Q7: 0.00 | R7: 0.00 | S7: 0.00 | T7: 12.40 | V7: 0.00 | W7: 0.00 | X7: 0.00
A8: 208 | E8: 社会保障和就业支出 | F8: 20.08 | G8: 20.08 | H8: 20.08 | I8: 0.00 | J8: 0.00 | K8: 0.00 | L8: 0.00 | M8: 0.00 | N8: 0.00 | O8: 0.00 | P8: 0.00 | Q8: 0.00 | R8: 0.00 | S8: 0.00 | T8: 0.00 | U8: 0.00 | V8: 0.00 | W8: 0.00 | X8: 0.00
B9: 05 | E9: 行政事业单位离退休 | F9: 20.08 | G9: 20.08 | H9: 20.08 | I9: 0.00 | J9: 0.00 | K9: 0.00 | L9: 0.00 | M9: 0.00 | N9: 0.00 | O9: 0.00 | P9: 0.00 | Q9: 0.00 | R9: 0.00 | S9: 0.00 | T9: 0.00 | U9: 0.00 | V9: 0.00 | W9: 0.00 | X9: 0.00
C10: 05 | E10: 机关事业单位基本养老保险缴费支出 | F10: 14.34 | G10: 14.34 | H10: 14.34 | I10: 0.00 | J10: 0.00 | K10: 0.00 | L10: 0.00 | M10: 0.00 | N10: 0.00 | O10: 0.00 | P10: 0.00 | Q10: 0.00 | R10: 0.00 | S10: 0.00 | T10: 0.00 | U10: 0.00 | V10: 0.00 | W10: 0.00 | X10: 0.00
C11: 06 | E11: 机关事业单位职业年金缴费支出 | F11: 5.74 | G11: 5.74 | H11: 5.74 | I11: 0.00 | J11: 0.00 | K11: 0.00 | L11: 0.00 | M11: 0.00 | N11: 0.00 | O11: 0.00 | P11: 0.00 | Q11: 0.00 | R11: 0.00 | S11: 0.00 | T11: 0.00 | U11: 0.00 | V11: 0.00 | W11: 0.00 | X11: 0.00
A12: 210 | E12: 医疗卫生与计划生育支出 | F12: 5.74 | G12: 5.74 | H12: 5.74 | I12: 0.00 | K12: 0.00 | L12: 0.00 | M12: 0.00 | N12: 0.00 | O12: 0.00 | P12: 0.00 | Q12: 0.00 | R12: 0.00 | S12: 0.00 | T12: 0.00 | U12: 0.00 | V12: 0.00 | W12: 0.00 | X12: 0.00
B13: 11 | E13: 行政事业单位医疗 | F13: 5.74 | G13: 5.74 | H13: 5.74 | I13: 0.00 | K13: 0.00 | L13: 0.00 | M13: 0.00 | N13: 0.00 | O13: 0.00 | P13: 0.00 | Q13: 0.00 | R13: 0.00 | S13: 0.00 | T13: 0.00 | U13: 0.00 | V13: 0.00 | W13: 0.00 | X13: 0.00
C14: 02 | E14: 事业单位医疗 | F14: 5.74 | G14: 5.74 | H14: 5.74 | I14: 0.00 | K14: 0.00 | L14: 0.00 | M14: 0.00 | N14: 0.00 | O14: 0.00 | P14: 0.00 | Q14: 0.00 | R14: 0.00 | S14: 0.00 | T14: 0.00 | U14: 0.00 | V14: 0.00 | W14: 0.00 | X14: 0.00
A15: 214 | E15: 交通运输支出 | F15: 421.59 | G15: 119.81 | H15: 73.21 | I15: 42.21 | J15: 4.39 | K15: 301.78 | L15: 164.28 | M15: 104.76 | N15: 20.34 | O15: 0.00 | P15: 0.00 | Q15: 0.00 | R15: 0.00 | S15: 0.00 | T15: 12.40 | V15: 0.00 | W15: 0.00 | X15: 0.00
B16: 01 | E16: 公路水路运输 | F16: 421.59 | G16: 119.81 | H16: 73.21 | I16: 42.21 | J16: 4.39 | K16: 301.78 | L16: 164.28 | M16: 104.76 | N16: 20.34 | O16: 0.00 | P16: 0.00 | Q16: 0.00 | R16: 0.00 | S16: 0.00 | T16: 12.40 | V16: 0.00 | W16: 0.00 | X16: 0.00
C17: 23 | E17: 航道维护 | O17: 0.00 | P17: 0.00 | Q17: 0.00 | R17: 0.00 | S17: 0.00 | U17: 0.00 | V17: 0.00 | W17: 0.00 | X17: 0.00
C18: 27 | E18: 船舶检验 | F18: 421.59 | G18: 119.81 | H18: 73.21 | I18: 42.21 | J18: 4.39 | K18: 301.78 | L18: 164.28 | M18: 104.76 | N18: 20.34 | O18: 0.00 | P18: 0.00 | Q18: 0.00 | R18: 0.00 | S18: 0.00 | T18: 12.40 | U18: 0.00 | V18: 0.00 | W18: 0.00 | X18: 0.00
C19: 36 | E19: 水路运输管理支出 | O19: 0.00 | P19: 0.00 | Q19: 0.00 | R19: 0.00 | S19: 0.00 | V19: 0.00 | W19: 0.00 | X19: 0.00
C20: 99 | E20: 其他公路水路运输支出 | O20: 0.00 | P20: 0.00 | Q20: 0.00 | R20: 0.00 | S20: 0.00 | V20: 0.00 | W20: 0.00 | X20: 0.00
A21: 221 | E21: 住房保障支出 | F21: 8.60 | G21: 8.60 | H21: 0.00 | I21: 0.00 | J21: 8.60 | K21: 0.00 | L21: 0.00 | M21: 0.00 | N21: 0.00 | O21: 0.00 | P21: 0.00 | Q21: 0.00 | R21: 0.00 | S21: 0.00 | T21: 0.00 | U21: 0.00 | V21: 0.00 | W21: 0.00 | X21: 0.00
B22: 02 | E22: 住房改革支出 | F22: 8.60 | G22: 8.60 | H22: 0.00 | I22: 0.00 | J22: 8.60 | K22: 0.00 | L22: 0.00 | M22: 0.00 | N22: 0.00 | O22: 0.00 | P22: 0.00 | Q22: 0.00 | R22: 0.00 | S22: 0.00 | T22: 0.00 | U22: 0.00 | V22: 0.00 | W22: 0.00 | X22: 0.00
C23: 01 | E23: 住房公积金 | F23: 8.60 | G23: 8.60 | H23: 0.00 | I23: 0.00 | J23: 8.60 | K23: 0.00 | L23: 0.00 | M23: 0.00 | N23: 0.00 | O23: 0.00 | P23: 0.00 | Q23: 0.00 | R23: 0.00 | S23: 0.00 | T23: 0.00 | U23: 0.00 | V23: 0.00 | W23: 0.00 | X23: 0.00
D24: 305006 | E24: 广西壮族自治区北部湾港口管理局 | F24: 456.01 | G24: 154.23 | H24: 99.03 | I24: 42.21 | J24: 12.99 | K24: 301.78 | L24: 164.28 | M24: 104.76 | N24: 20.34 | O24: 0.00 | P24: 0.00 | Q24: 0.00 | R24: 0.00 | S24: 0.00 | T24: 12.40 | V24: 0.00 | W24: 0.00 | X24: 0.00
D25: 305006011 | E25: 北海船舶检验局 | F25: 456.01 | G25: 154.23 | H25: 99.03 | I25: 42.21 | J25: 12.99 | K25: 301.78 | L25: 164.28 | M25: 104.76 | N25: 20.34 | O25: 0.00 | P25: 0.00 | Q25: 0.00 | R25: 0.00 | S25: 0.00 | T25: 12.40 | U25: 0.00 | V25: 0.00 | W25: 0.00 | X25: 0.00
A26: 208 | B26: 05 | C26: 05 | E26: 机关事业单位基本养老保险缴费支出 | F26: 14.34 | G26: 14.34 | H26: 14.34 | I26: 0.00 | J26: 0.00 | K26: 0.00 | L26: 0.00 | M26: 0.00 | N26: 0.00 | O26: 0.00 | P26: 0.00 | Q26: 0.00 | R26: 0.00 | S26: 0.00 | T26: 0.00 | U26: 0.00 | V26: 0.00 | W26: 0.00 | X26: 0.00
A27: 208 | B27: 05 | C27: 06 | E27: 机关事业单位职业年金缴费支出 | F27: 5.74 | G27: 5.74 | H27: 5.74 | I27: 0.00 | J27: 0.00 | K27: 0.00 | L27: 0.00 | M27: 0.00 | N27: 0.00 | O27: 0.00 | P27: 0.00 | Q27: 0.00 | R27: 0.00 | S27: 0.00 | T27: 0.00 | U27: 0.00 | V27: 0.00 | W27: 0.00 | X27: 0.00
A28: 210 | B28: 11 | C28: 02 | E28: 事业单位医疗 | F28: 5.74 | G28: 5.74 | H28: 5.74 | I28: 0.00 | J28: 0.00 | K28: 0.00 | L28: 0.00 | M28: 0.00 | N28: 0.00 | O28: 0.00 | P28: 0.00 | Q28: 0.00 | R28: 0.00 | S28: 0.00 | T28: 0.00 | U28: 0.00 | V28: 0.00 | W28: 0.00 | X28: 0.00
A29: 214 | B29: 01 | C29: 27 | E29: 船舶检验 | F29: 421.59 | G29: 119.81 | H29: 73.21 | I29: 42.21 | J29: 4.39 | K29: 301.78 | L29: 164.28 | M29: 104.76 | N29: 20.34 | O29: 0.00 | P29: 0.00 | Q29: 0.00 | R29: 0.00 | S29: 0.00 | T29: 12.40 | U29: 0.00 | V29: 0.00 | W29: 0.00 | X29: 0.00
A30: 221 | B30: 02 | C30: 01 | E30: 住房公积金 | F30: 8.60 | G30: 8.60 | H30: 0.00 | I30: 0.00 | J30: 8.60 | K30: 0.00 | L30: 0.00 | M30: 0.00 | N30: 0.00 | O30: 0.00 | P30: 0.00 | Q30: 0.00 | R30: 0.00 | S30: 0.00 | T30: 0.00 | U30: 0.00 | V30: 0.00 | W30: 0.00 | X30: 0.00
